bitfinex/quotes_ETHUSD_20260102
["timestamp","ask_amount","ask_price","bid_price","bid_amount"]
[1767344709748,2.33066442,3031.2,3030.9,0.001]
[1767344710843,2.33066442,3031.2,3030.9,1.01743056]
[1767344712447,2.25291228,3031.2,3030.9,1.01743056]
[1767344712945,2.33066442,3031.6,3031.0,1.09347447]
[1767344713247,2.33066442,3032.0,3031.0,4.89754841]
[1767344713449,0.002,3032.2,3031.6,1.09312645]
[1767344713661,2.33266442,3032.2,3031.6,1.09312645]
[1767344714020,2.33066442,3032.1,3031.6,1.09312645]
[1767344714825,2.33066442,3031.9,3031.2,4.16498958]
[1767344715043,2.33066442,3031.9,3031.3,0.60775599]
[1767344715343,3.29996435,3032.2,3031.0,5.25767607]
[1767344715344,2.33066442,3031.7,3031.0,5.25767607]
[1767344715539,2.33066442,3031.7,3031.2,1.09244234]
[1767344715765,2.33066442,3031.7,3031.3,1.09244234]
[1767344716176,2.33066442,3031.7,3031.0,4.16519543]
[1767344716375,2.33066442,3031.7,3031.1,1.09210617]
[1767344718140,2.33066442,3031.7,3031.3,0.001]
[1767344718369,2.33066442,3031.6,3031.3,0.001]
[1767344722689,2.33066442,3031.6,3031.0,1.95716869]
[1767344723062,2.33066442,3031.6,3031.0,1.09116869]
[1767344723784,2.33066442,3031.6,3030.9,0.867]
[1767344723963,2.33066442,3031.6,3030.9,1.95785863]
[1767344724163,2.33066442,3031.5,3030.9,1.95785863]
[1767344724994,0.868,3032.2,3031.7,0.14722874]
[1767344724995,0.0010029,3032.1,3031.7,0.14722874]
[1767344725292,2.33166732,3032.1,3031.7,0.14722874]
[1767344726198,2.33166732,3032.1,3031.7,1.01322874]
[1767344727255,2.33166732,3032.1,3031.7,0.14722874]
[1767344727489,2.56503405,3032.1,3031.5,0.14574826]
[1767344727790,2.56503405,3032.1,3031.6,0.14574826]
[1767344728184,3.80607394,3032.2,3031.5,0.866]
[1767344728185,0.00100097,3032.2,3031.9,3.80407394]
[1767344728488,0.00100097,3032.2,3031.9,0.866]
[1767344729192,0.00100097,3032.2,3031.9,7.46245178]
[1767344729890,0.00100097,3032.2,3031.9,3.29818997]
[1767344730114,0.00100097,3032.2,3032.0,0.329819]
[1767344730916,0.002,3032.7,3032.1,3.80407394]
[1767344731109,0.002,3032.7,3032.1,7.10202512]
[1767344732098,0.002,3032.7,3032.1,10.40006937]
[1767344733128,0.002,3032.2,3032.1,7.10202512]
[1767344733321,0.002,3032.7,3032.1,8.26162428]
[1767344733486,0.002,3032.7,3032.1,4.45755034]
[1767344733821,0.002,3032.7,3032.2,0.866]
[1767344733822,2.49470998,3032.7,3032.2,0.866]
[1767344735322,2.49470998,3032.7,3032.1,4.45755034]
[1767344735622,2.49470998,3032.7,3032.2,0.866]
[1767344735923,2.49470998,3032.7,3032.2,1.43133693]
[1767344738595,2.49470998,3032.7,3032.2,0.56533693]
[1767344738932,2.49470998,3032.7,3032.2,1.43133693]
[1767344739096,2.49470998,3032.7,3032.2,0.866]
[1767344739519,2.49470998,3032.7,3032.1,0.866]
[1767344740031,2.49470998,3032.7,3032.1,0.867]
[1767344740205,2.49470998,3032.7,3032.1,0.001]
[1767344740412,2.49270998,3032.5,3032.1,0.001]
[1767344742025,2.49270998,3032.1,3031.4,3.29872109]
[1767344742227,2.49270998,3032.1,3031.4,6.59752692]
[1767344743128,2.49270998,3032.1,3031.4,10.40160086]
[1767344743448,2.49270998,3032.1,3031.5,0.866]
[1767344743606,2.49270998,3032.1,3031.6,0.74635269]
[1767344744204,2.49270998,3032.1,3031.6,4.04488325]
[1767344744398,0.002,3032.7,3031.6,4.04488325]
[1767344744399,2.49270998,3032.5,3031.6,4.04488325]
[1767344744600,2.49270998,3032.5,3031.7,3.80407394]
[1767344745537,2.49270998,3032.5,3031.6,7.34347145]
[1767344745741,2.49270998,3032.5,3031.8,3.2983706]
[1767344746366,2.49270998,3032.5,3031.8,6.5967412]
[1767344749155,2.49270998,3032.5,3031.8,3.2983706]
[1767344750192,0.002,3032.7,3032.3,3.80407394]
[1767344750388,0.002,3032.7,3032.4,0.866]
[1767344750674,0.002,3032.7,3032.5,0.46700739]
[1767344751985,0.002,3032.7,3032.6,3.29750049]
[1767344754387,0.002,3032.7,3032.5,3.76456737]
[1767344755898,0.002,3032.7,3032.6,0.866]
[1767344758192,0.002,3032.7,3032.5,3.29755998]
[1767344758489,0.002,3032.7,3032.6,0.65952738]
[1767344758893,0.002,3032.7,3032.6,3.95702787]
[1767344759260,0.002,3032.7,3032.6,0.65952738]
[1767344759558,0.002,3032.7,3032.5,4.16355729]
[1767344759887,0.002,3032.7,3032.5,0.866]
[1767344760478,0.002,3032.7,3032.5,4.16360019]
[1767344760878,0.002,3032.7,3032.5,0.866]
[1767344761082,2.26445797,3032.7,3032.5,0.866]
[1767344761861,2.26445797,3032.7,3032.4,4.15638632]
[1767344762057,2.26245797,3032.9,3032.5,4.15632798]
[1767344762284,2.26245797,3032.9,3032.2,5.65957158]
[1767344762563,2.26245797,3032.9,3032.3,2.36172137]
[1767344763181,2.26245797,3032.9,3032.4,3.29769637]
[1767344763992,2.26245797,3032.9,3032.3,2.36172137]
[1767344764182,2.26245797,3032.7,3032.3,2.36172137]
[1767344764989,2.26245797,3032.7,3032.3,5.65953552]
[1767344766789,2.26245797,3032.7,3032.3,3.29781415]
[1767344766994,0.002,3033.1,3032.5,2.36172137]
[1767344767293,0.002,3033.1,3032.7,2.36172137]
[1767344769370,0.002,3033.1,3032.7,5.65911]
[1767344770071,2.26445797,3033.1,3032.7,2.36172137]
[1767344770295,2.26445797,3033.1,3032.7,5.65910814]
[1767344770977,0.002,3033.1,3032.7,3.29738677]
[1767344771193,2.26445797,3033.3,3032.8,2.36172137]
[1767344772801,3.80156715,3033.9,3032.8,2.36172137]
[1767344772802,2.26445797,3034.0,3033.0,2.36172137]
[1767344773188,2.26445797,3034.0,3033.2,2.36172137]
[1767344773587,2.26445797,3034.0,3033.4,2.36172137]
[1767344775705,2.26445797,3034.0,3033.4,5.65835135]
[1767344777383,2.26445797,3034.0,3033.4,2.36172137]
[1767344779925,2.26445797,3034.0,3033.4,5.65835056]
[1767344780416,2.26245797,3033.9,3032.2,3.80156715]
[1767344780604,2.26245797,3033.9,3033.0,3.29706509]
[1767344780778,2.26245797,3033.9,3033.0,0.866]
[1767344780984,2.26245797,3033.8,3033.1,2.36172137]
[1767344781180,2.26245797,3033.6,3033.1,2.36172137]
[1767344789124,2.26445797,3033.6,3033.1,2.36172137]
[1767344791654,2.26445797,3033.6,3033.0,2.28898228]
[1767344791949,2.26445797,3033.6,3032.8,5.58523004]
[1767344792118,2.26445797,3033.6,3032.8,3.29724776]
[1767344792317,2.26445797,3033.6,3033.0,2.28798228]
[1767344797253,2.26445797,3033.6,3033.0,2.28898228]
[1767344797965,2.26445797,3033.6,3032.6,0.867]
[1767344797966,2.31857325,3033.3,3032.6,2.28898228]
[1767344803841,2.31857325,3033.3,3032.6,5.5863995]
[1767344804046,2.31857325,3033.3,3032.7,2.84662223]
[1767344805973,2.31857325,3033.3,3032.7,6.14395527]
[1767344806146,2.31857325,3033.3,3032.8,2.28798228]
[1767344807184,2.31857325,3033.3,3032.7,2.28798228]
[1767344807371,2.31857325,3033.3,3032.8,2.28798228]
[1767344813491,2.31857325,3033.3,3032.8,2.28898228]
[1767344819578,2.31857325,3033.3,3032.8,0.001]
[1767344819778,2.88009543,3033.3,3032.8,0.001]
[1767344819974,2.53015107,3033.2,3032.5,0.001]
[1767344820205,2.53015107,3033.2,3032.4,2.43407878]
[1767344820206,2.53015107,3033.0,3032.4,2.43407878]
[1767344821624,2.53015107,3033.0,3032.4,2.43507878]
[1767344824743,2.53015107,3032.8,3032.4,2.43507878]
[1767344824945,2.53015107,3032.8,3032.1,2.43407878]
[1767344825115,2.53015107,3032.8,3032.2,3.00739639]
[1767344826034,2.53015107,3032.8,3032.3,2.43407878]
[1767344826428,2.53015107,3032.6,3032.1,2.43407878]
[1767344830447,2.53215107,3032.6,3032.1,2.43407878]
[1767344842447,2.53215107,3032.6,3032.0,0.001]
[1767344842694,2.53215107,3032.6,3031.9,2.43407878]
[1767344842695,2.53015107,3032.4,3031.9,2.43407878]
[1767344842859,2.53015107,3032.4,3031.8,2.43507878]
[1767344844279,2.53015107,3032.4,3031.9,2.43407878]
[1767344846572,2.53215107,3032.4,3031.9,2.43407878]
[1767344846755,2.59737027,3032.5,3031.9,2.41228127]
[1767344846962,0.002,3032.6,3032.1,2.41228127]
[1767344847266,2.59737027,3032.5,3032.1,2.41228127]
[1767344847485,3.80226477,3032.5,3032.1,2.41228127]
[1767344847638,2.59737027,3032.4,3032.1,2.41228127]
[1767344847834,2.59737027,3032.4,3031.8,0.001]
[1767344847835,2.59737027,3032.2,3031.8,0.001]
[1767344849171,2.59737027,3032.2,3031.8,2.41328127]
[1767344849774,0.002,3032.6,3031.9,2.41228127]
[1767344850067,2.59737027,3033.1,3032.1,2.41228127]
[1767344850254,2.59737027,3033.1,3032.2,0.03297934]
[1767344850572,2.59737027,3033.0,3032.3,2.41228127]
[1767344852474,3.80226477,3032.9,3032.3,2.41228127]
[1767344852640,2.59737027,3032.8,3032.3,2.41228127]
[1767344853041,4.16279475,3033.3,3032.4,2.41228127]
[1767344853042,2.59737027,3033.2,3032.4,2.41228127]
[1767344853352,0.866,3033.1,3032.4,2.41228127]
[1767344853671,2.59737027,3033.0,3032.4,2.41228127]
[1767344855370,2.59937027,3033.0,3032.4,2.41228127]
[1767344855946,2.59737027,3032.9,3032.3,2.98331073]
[1767344856272,2.59737027,3032.9,3032.3,2.41228127]
[1767344857071,2.59737027,3032.9,3032.2,2.41228127]
[1767344860375,2.59737027,3032.9,3032.2,2.44526061]
[1767344861165,2.59737027,3032.9,3032.2,2.41228127]
[1767344863359,2.59937027,3032.9,3032.2,2.41228127]
[1767344863546,2.59737027,3032.8,3032.2,2.41228127]
[1767344863747,2.59737027,3032.8,3032.3,2.41228127]
[1767344866980,2.59737027,3032.8,3032.4,2.41228127]
[1767344867149,0.002,3032.9,3032.5,2.41228127]
[1767344868563,2.59937027,3032.9,3032.5,2.41228127]
[1767344872161,0.002,3032.9,3032.5,2.41228127]
[1767344872709,2.59937027,3032.9,3032.5,2.41228127]
[1767344882622,2.61401493,3033.4,3032.8,3.80226477]
[1767344882782,2.61401493,3033.4,3032.9,2.60696738]
[1767344887748,2.61601493,3033.4,3032.9,2.60696738]
[1767344889689,2.61601493,3033.4,3032.7,2.60696738]
[1767344892627,2.61601493,3033.4,3032.6,2.60696738]
[1767344892793,2.61601493,3033.4,3032.7,2.60696738]
[1767344894506,2.61601493,3033.4,3032.8,2.60696738]
[1767344897398,2.61601493,3033.4,3032.8,2.60796738]
[1767344900661,0.867,3033.6,3032.8,2.60796738]
[1767344900662,0.002,3033.6,3032.9,2.60696738]
[1767344900965,2.61601493,3033.9,3032.9,2.60696738]
[1767344901267,2.61601493,3033.9,3033.1,2.60696738]
[1767344903217,2.61601493,3033.9,3033.3,2.60696738]
[1767344903621,0.002,3034.0,3033.3,2.60696738]
[1767344905449,2.63005581,3034.0,3033.5,2.59656008]
[1767344905652,2.63005581,3034.0,3033.6,2.59656008]
[1767344906460,0.002,3033.9,3033.6,2.59656008]
[1767344908247,0.002,3033.9,3033.7,3.29630484]
[1767344908453,0.002,3033.9,3033.6,5.89291818]
[1767344914163,0.002,3034.0,3033.7,2.73609371]
[1767344914453,0.002,3034.2,3033.7,2.73609371]
[1767344914864,0.002,3033.9,3033.7,2.73609371]
[1767344915074,0.002,3034.2,3033.7,2.73609371]
[1767344915075,0.002,3034.2,3033.8,2.73609371]
[1767344916365,0.002,3034.5,3033.8,1.98779637]
[1767344916729,2.61337275,3034.5,3033.8,1.98779637]
[1767344916930,2.06244521,3036.8,3034.4,1.98779637]
[1767344916931,2.61137275,3035.1,3034.4,1.98779637]
[1767344917125,2.87271002,3035.0,3033.9,6.59217508]
[1767344917356,2.87271002,3035.0,3034.0,1.9899226]
[1767344917561,2.61137275,3035.0,3034.2,1.9899226]
[1767344917783,0.002,3035.2,3034.3,1.9899226]
[1767344917784,2.61337275,3035.2,3034.3,1.9899226]
[1767344920867,2.61337275,3035.2,3034.4,0.865]
[1767344921036,2.61337275,3035.2,3034.5,2.00207759]
[1767344922564,2.61137275,3035.1,3034.3,3.29663046]
[1767344922868,2.61137275,3035.1,3034.4,0.865]
[1767344924965,2.61137275,3035.1,3034.3,5.30655088]
[1767344925141,2.61137275,3035.1,3034.4,0.865]
[1767344926539,2.61137275,3035.1,3034.4,2.89008376]
[1767344926848,2.61137275,3034.9,3034.4,2.89008376]
[1767344928538,2.61137275,3034.9,3034.4,2.02508376]
[1767344928733,3.29667714,3035.2,3034.6,2.03237802]
[1767344928951,2.61137275,3035.1,3034.6,2.03237802]
[1767344929746,0.002,3035.2,3034.6,2.03237802]
[1767344929937,0.002,3035.2,3034.8,2.03596125]
[1767344930143,2.61137275,3035.5,3034.8,2.0375015]
[1767344931475,2.61137275,3036.3,3034.8,6.59020629]
[1767344931655,2.61137275,3036.3,3034.8,9.88531634]
[1767344931969,3.25289796,3036.3,3034.9,1.88250541]
[1767344932172,3.25289796,3036.3,3035.0,0.00584832]
[1767344932375,2.61137275,3036.3,3035.1,0.00584832]
[1767344933244,2.61137275,3036.3,3035.3,0.01157008]
[1767344933464,2.61137275,3036.3,3035.4,0.01157008]
[1767344934664,2.61137275,3037.3,3035.4,0.01322023]
[1767344934979,2.61137275,3036.9,3035.5,0.01322023]
[1767344935352,2.61137275,3036.6,3035.5,0.01322023]
[1767344935674,2.61137275,3036.6,3035.7,0.0188121]
[1767344935855,0.002,3036.3,3035.8,0.865]
[1767344936055,0.002,3036.3,3035.9,0.02433251]
[1767344936253,2.64737188,3036.9,3035.9,0.89278273]
[1767344936879,2.64737188,3036.9,3036.0,0.02778273]
[1767344937049,2.64737188,3036.8,3036.0,0.02778273]
[1767344937874,2.64737188,3036.7,3036.0,0.02778273]
[1767344938058,2.64737188,3036.5,3036.0,0.02778273]
[1767344938900,2.64737188,3036.5,3035.4,4.0411556]
[1767344939043,2.64737188,3036.5,3035.7,0.865]
[1767344939249,2.64737188,3036.3,3035.5,0.01073563]
[1767344939569,2.64737188,3036.3,3035.6,0.865]
[1767344939746,2.64737188,3036.1,3035.6,0.865]
[1767344939942,2.64737188,3036.1,3035.4,0.865]
[1767344940160,2.64737188,3035.9,3035.4,0.88105009]
[1767344940477,2.64737188,3035.9,3035.5,0.02130875]
[1767344941452,2.64737188,3035.9,3035.4,0.865]
[1767344941962,2.64737188,3035.9,3035.1,3.32125258]
[1767344942168,2.64737188,3035.9,3035.3,0.865]
[1767344942486,2.64737188,3035.9,3035.3,3.3261422]
[1767344942686,2.64737188,3035.9,3035.3,4.15950665]
[1767344942854,2.64737188,3035.9,3035.4,0.03163555]
[1767344945355,2.91210907,3035.9,3035.4,0.03163555]
[1767344948347,2.91210907,3035.9,3035.2,4.22099261]
[1767344948669,2.91210907,3035.9,3035.2,0.92485366]
[1767344948864,2.91210907,3035.9,3035.2,3.3559883]
[1767344949181,2.91210907,3035.9,3035.2,0.92632823]
[1767344949381,2.64737188,3035.8,3035.2,3.35599986]
[1767344949676,2.64737188,3035.8,3035.1,4.22580051]
[1767344950049,2.64737188,3035.8,3035.1,3.36080051]
[1767344950285,2.64737188,3035.7,3035.1,3.36080051]
[1767344950460,2.64737188,3035.7,3035.1,4.22580051]
[1767344950660,2.64737188,3035.6,3035.2,0.07076027]
[1767344950978,6.44187396,3035.5,3035.0,0.866]
[1767344951151,6.44187396,3035.5,3035.1,0.00471516]
[1767344951566,2.64737188,3035.4,3035.0,0.001]
[1767344951770,3.79450208,3035.5,3035.0,0.001]
[1767344951771,6.44187396,3035.3,3035.0,0.001]
[1767344951970,2.64737188,3035.3,3035.0,0.001]
[1767344952172,2.64737188,3035.3,3035.0,0.005651]
[1767344952357,3.29155928,3035.3,3035.0,0.001]
[1767344952759,2.64737188,3035.2,3034.5,3.29543149]
[1767344952963,2.64737188,3035.2,3034.5,3.30008249]
[1767344954460,2.64737188,3035.2,3034.5,4.16508249]
[1767344955797,2.64737188,3035.2,3034.5,0.869651]
[1767344955995,2.64737188,3035.2,3034.5,4.16504642]
[1767344956172,2.64737188,3035.2,3034.6,0.02279504]
[1767344957473,2.64737188,3035.2,3034.6,3.31811371]
[1767344957878,2.64737188,3035.2,3034.7,0.0266585]
[1767344958707,2.64737188,3035.4,3034.7,0.0266585]
[1767344959418,2.64737188,3035.7,3034.9,0.03427388]
[1767344959621,2.64737188,3035.7,3035.1,0.03427388]
[1767344961488,3.29553364,3036.3,3035.3,0.04170615]
[1767344961489,2.64737188,3036.2,3035.3,0.04170615]
[1767344965011,2.64737188,3036.2,3035.4,3.29445872]
[1767344965218,2.64737188,3036.2,3035.5,0.05614433]
[1767344965423,2.64937188,3036.2,3035.6,0.39468807]
[1767344965731,2.64937188,3036.2,3035.6,0.33506031]
[1767344965889,2.64937188,3036.2,3035.5,0.05962776]
[1767344967298,2.64937188,3036.2,3035.6,0.06985623]
[1767344967614,0.00054182,3036.3,3035.8,0.06785623]
[1767344969417,0.00054182,3036.3,3036.0,0.07447068]
[1767344969602,0.00054182,3036.3,3036.2,0.07447068]
[1767344971432,0.00054182,3036.3,3036.2,3.36806135]
[1767344971726,0.00054182,3036.3,3036.2,0.07447068]
[1767344975863,0.00054182,3036.3,3036.2,3.36806135]
[1767344976155,2.72223039,3036.8,3036.1,1.29513276]
[1767344976456,2.72223039,3036.8,3036.2,0.45888908]
[1767344976662,0.17193378,3038.1,3036.8,0.09576725]
[1767344976799,0.003,3038.5,3038.1,0.09576725]
[1767344976999,0.003,3038.9,3038.6,0.08976725]
[1767344978136,2.72223039,3038.8,3038.3,0.865]
[1767344978335,2.72223039,3039.1,3038.3,0.09571639]
[1767344979134,2.72223039,3039.1,3038.5,0.09571639]
[1767344979433,2.72223039,3038.5,3036.7,0.09859597]
[1767344979607,2.72223039,3038.5,3037.7,0.09859597]
[1767344979805,2.72223039,3038.1,3037.4,0.09859597]
[1767344980000,2.72223039,3037.9,3036.9,0.09859597]
[1767344980328,2.72223039,3037.9,3037.1,0.10146709]
[1767344981209,2.72223039,3037.9,3037.2,0.001]
[1767344981414,2.72223039,3037.9,3037.3,0.10430371]
[1767344981816,2.72223039,3038.3,3037.3,0.10430371]
[1767344982015,2.72223039,3038.2,3037.3,0.10430371]
[1767344982216,6.01366499,3038.2,3037.3,0.10430371]
[1767344982534,2.72223039,3038.1,3037.3,0.10430371]
[1767344983128,3.6856525,3038.3,3037.2,0.001]
[1767344983129,2.72223039,3038.8,3037.5,0.10709978]
[1767344983326,2.72223039,3038.6,3037.5,0.10709978]
[1767344984107,2.72223039,3038.2,3037.2,0.001]
[1767344986312,9.87302364,3038.6,3037.3,0.11795274]
[1767344986313,2.72223039,3038.6,3037.3,0.11795274]
[1767344986512,0.002,3038.9,3037.5,0.11795274]
[1767344986513,2.72223039,3038.8,3037.5,0.11795274]
[1767344986738,3.32372174,3038.8,3037.7,0.11795274]
[1767344987042,0.002,3038.9,3037.7,0.11795274]
[1767344987409,2.72223039,3039.1,3037.7,0.11855941]
[1767344987820,2.72223039,3039.1,3037.9,0.11855941]
[1767344988019,2.72223039,3039.1,3038.1,0.11855941]
[1767344988237,2.72223039,3039.1,3038.3,0.12113673]
[1767344988441,2.72223039,3039.1,3038.5,0.12113673]
[1767344989417,2.72223039,3039.1,3038.5,0.98513673]
[1767344989742,0.002,3038.9,3038.5,0.98513673]
[1767344990624,0.002,3038.9,3038.6,0.12622888]
[1767344991935,2.72223039,3039.1,3038.6,0.12622888]
[1767344992144,0.003,3039.2,3038.6,0.12622888]
[1767344992736,2.72523039,3039.2,3038.6,0.12622888]
[1767344993330,2.72523039,3039.2,3038.5,0.8733895]
[1767344993529,2.72523039,3039.2,3038.5,0.90599807]
[1767344993741,2.72523039,3039.2,3038.7,0.1316215]
[1767344993742,0.003,3039.2,3038.7,0.1316215]
[1767344993919,0.003,3039.2,3038.9,0.1316215]
[1767344994458,2.72523039,3039.2,3038.9,0.864]
[1767344994616,2.72523039,3039.2,3038.6,0.13770702]
[1767344994617,2.72523039,3039.2,3038.8,0.864]
[1767344995660,2.72523039,3039.2,3038.5,0.90599276]
[1767344995820,2.72523039,3039.2,3038.6,0.43372081]
[1767344996522,2.72523039,3039.2,3038.5,0.90599276]
[1767344997162,2.72523039,3039.2,3038.5,0.04199276]
[1767344997326,2.72523039,3039.2,3038.5,3.33302918]
[1767344997964,2.72523039,3039.2,3038.5,4.34691392]
[1767344998132,2.72523039,3039.2,3038.5,4.34791392]
[1767344998333,2.72723039,3039.2,3038.6,0.76390124]
[1767344998528,2.72723039,3039.2,3038.7,4.34057433]
[1767344998754,0.005,3039.2,3038.8,1.01709226]
[1767344999042,0.005,3039.2,3038.9,0.03259896]
[1767344999243,2.97722125,3039.2,3038.9,0.03259896]
[1767344999453,2.97722125,3039.2,3038.9,0.43405722]
[1767345000234,2.34905029,3039.2,3038.9,0.43405722]
[1767345000543,2.97222125,3039.7,3038.9,2.11697017]
[1767345000855,2.97222125,3039.7,3039.0,1.68291295]
[1767345001233,3.28927208,3040.2,3039.0,1.68291295]
[1767345001234,0.00043222,3041.6,3039.3,5.02456803]
[1767345001569,2.97222125,3045.2,3041.9,0.2013476]
[1767345001724,2.97222125,3044.9,3042.5,0.2013476]
[1767345001923,2.97222125,3044.9,3042.9,5.02456803]
[1767345002157,1.00794452,3045.1,3043.3,0.2013476]
[1767345002158,2.97222125,3044.7,3043.3,0.2013476]
[1767345002352,2.97222125,3045.3,3043.4,0.86635788]
[1767345002566,2.97222125,3044.7,3043.0,4.1501881]
[1767345002738,2.97222125,3044.5,3043.1,8.215951]
[1767345003068,2.97222125,3045.3,3043.6,5.02456803]
[1767345003228,2.97222125,3045.1,3043.0,3.2861881]
[1767345003429,2.97222125,3044.9,3043.6,0.00550462]
[1767345003739,0.15963519,3045.4,3044.0,2.96789163]
[1767345003939,2.97222125,3045.3,3044.2,2.96789163]
[1767345004145,0.15963519,3045.4,3044.2,0.864]
[1767345004351,2.97222125,3047.6,3045.3,2.66790685]
[1767345004661,2.97222125,3047.0,3045.4,5.95153183]
[1767345004869,3.28088568,3048.0,3045.8,2.66790685]
[1767345004870,2.97222125,3048.0,3045.8,2.66790685]
[1767345005039,3.26944338,3047.9,3046.5,2.66790685]
[1767345005380,2.97222125,3047.9,3046.7,2.72703284]
[1767345005598,2.97222125,3047.9,3045.9,0.42679069]
[1767345005599,2.97222125,3047.9,3046.8,0.864]
[1767345005873,2.97222125,3048.9,3047.3,2.67703284]
[1767345006039,0.29783998,3048.8,3047.3,2.94473612]
[1767345006368,7.02456803,3049.7,3047.3,2.91308333]
[1767345006369,2.97222125,3049.2,3047.3,2.91308333]
[1767345006681,2.97222125,3049.6,3048.3,2.64538005]
[1767345006841,2.0,3049.7,3046.9,2.64538005]
[1767345006842,2.97222125,3049.2,3046.9,2.64538005]
[1767345007038,2.97222125,3048.7,3046.6,2.64538005]
[1767345007247,0.863,3048.6,3046.9,5.93679329]
[1767345007574,2.97222125,3048.0,3046.1,0.863]
[1767345007735,2.97222125,3047.3,3044.4,2.65477406]
[1767345007938,2.97222125,3046.8,3044.6,2.65477406]
[1767345008146,0.16,3047.4,3044.9,2.65477406]
[1767345008147,2.97222125,3046.6,3044.9,2.65477406]
[1767345008336,3.83522125,3046.6,3045.2,3.28383846]
[1767345008669,3.83522125,3046.6,3044.7,0.35177741]
[1767345008670,2.97222125,3046.5,3044.7,0.35177741]
[1767345008866,2.97222125,3046.2,3044.5,3.28457142]
[1767345009178,2.97222125,3046.2,3043.4,8.50655465]
[1767345009179,6.56475026,3046.6,3044.0,2.96789163]
[1767345009359,2.97222125,3046.6,3045.2,6.64322317]
[1767345009555,2.97222125,3046.6,3045.4,2.96789163]
[1767345009754,2.97222125,3047.1,3045.7,0.07556096]
[1767345009961,2.97222125,3047.1,3045.5,0.37235012]
[1767345009962,2.97222125,3046.7,3044.8,0.07556096]
[1767345010157,0.07556096,3047.4,3044.5,3.36008241]
[1767345010158,2.97222125,3046.3,3044.5,3.36008241]
[1767345010358,2.97222125,3046.1,3044.4,2.96789163]
[1767345010537,6.56641932,3045.8,3044.4,0.30434526]
[1767345010736,2.97222125,3045.7,3043.9,3.04345259]
[1767345010951,2.97222125,3045.5,3043.9,3.04345259]
[1767345011152,2.97222125,3045.3,3043.9,6.32869741]
[1767345011435,2.97222125,3045.3,3043.6,0.03285582]
[1767345011639,2.97222125,3045.1,3043.6,0.03285582]
[1767345011843,2.97222125,3044.9,3043.6,3.28555864]
[1767345012085,9.84962898,3045.8,3043.8,2.96789163]
[1767345012086,2.97222125,3045.7,3043.8,2.96789163]
[1767345012385,0.862,3045.7,3044.5,2.96789163]
[1767345012684,2.97222125,3045.5,3044.1,0.07556096]
[1767345012885,3.5977859,3045.4,3044.2,0.30434526]
[1767345013453,3.5977859,3045.4,3044.3,3.28478574]
[1767345013659,0.862,3045.3,3044.3,3.28478574]
[1767345013977,0.862,3045.2,3044.3,6.56963469]
[1767345014388,2.97222125,3045.4,3044.2,0.30434526]
[1767345014549,0.864,3045.1,3044.1,3.28496855]
[1767345014756,2.97222125,3045.0,3043.5,3.28566896]
[1767345015079,2.97222125,3045.0,3043.3,6.25369578]
[1767345015080,2.97222125,3045.0,3043.3,2.96789163]
[1767345015379,2.97222125,3045.0,3043.8,3.28534544]
[1767345015691,3.28601595,3045.1,3043.4,2.96789163]
[1767345015692,2.97222125,3044.9,3043.4,2.96789163]
[1767345015906,0.002,3045.1,3044.1,2.96789163]
[1767345016056,0.864,3045.1,3044.1,2.96789163]
[1767345016256,2.97222125,3045.0,3043.9,3.28520864]
[1767345016568,2.97222125,3045.0,3043.9,3.28518794]
[1767345016764,2.97222125,3044.8,3043.6,3.28554655]
[1767345017087,0.862,3044.7,3043.7,0.6878813]
[1767345017291,0.862,3044.6,3043.7,0.6878813]
[1767345017586,0.862,3044.6,3043.5,6.25356333]
[1767345017587,0.84482355,3044.6,3043.5,6.25356305]
[1767345017784,0.84482355,3044.6,3043.5,2.96789163]
[1767345018089,3.8170448,3044.6,3043.6,0.03285582]
[1767345018294,0.002,3045.1,3043.6,3.00074745]
[1767345018295,2.97422125,3045.1,3043.6,3.00074745]
[1767345018463,2.97422125,3045.1,3043.8,2.96789163]
[1767345018790,0.862,3045.0,3044.0,6.25304274]
[1767345018998,0.862,3045.0,3044.1,0.03285042]
[1767345019209,2.97222125,3044.9,3043.7,1.47929049]
[1767345019392,2.97222125,3044.9,3043.5,2.96789163]
[1767345019596,0.002,3045.1,3044.0,2.96789163]
[1767345019896,0.002,3045.1,3043.9,9.8557612]
[1767345019897,1.94e-06,3045.1,3044.2,2.96789163]
[1767345020103,2.97222125,3045.9,3044.2,2.96789163]
[1767345020272,2.97222125,3045.7,3044.4,2.96789163]
[1767345020670,2.96283175,3045.7,3044.5,6.56922318]
[1767345020985,3.83422125,3045.6,3044.5,6.25250322]
[1767345021186,3.83422125,3045.6,3044.0,0.07556096]
[1767345021187,2.97222125,3045.5,3044.0,2.96789163]
[1767345021404,2.97222125,3045.3,3044.4,3.28468751]
[1767345021560,0.862,3045.2,3044.4,3.28468751]
[1767345021760,3.28334288,3045.7,3044.5,2.96789163]
[1767345021761,2.97222125,3045.7,3044.5,2.96789163]
[1767345022015,2.97222125,3045.5,3044.4,3.28468751]
[1767345022178,2.97222125,3045.5,3044.4,3.28470656]
[1767345022374,0.862,3045.4,3044.4,6.8978967]
[1767345022589,0.862,3045.4,3044.4,0.32847066]
[1767345022913,0.862,3045.4,3044.3,6.25270892]
[1767345022914,4.14567051,3045.4,3044.3,6.25270892]
[1767345023089,3.00507182,3045.3,3044.0,3.91043643]
[1767345023303,3.00507182,3045.3,3044.0,0.6253244]
[1767345023517,3.00507182,3045.3,3043.4,2.96789163]
[1767345023808,2.97222125,3045.0,3043.0,2.96789163]
[1767345023964,5.22077583,3044.8,3042.6,6.25451869]
[1767345024161,2.97222125,3044.4,3042.8,0.001]
[1767345024410,2.97222125,3044.2,3042.8,3.28740697]
[1767345024576,0.30477822,3044.3,3042.8,0.001]
[1767345024577,2.97222125,3044.0,3042.8,0.001]
[1767345024895,2.97222125,3043.8,3042.8,0.001]
[1767345025099,2.97222125,3043.8,3042.1,6.25509454]
[1767345025279,2.97222125,3043.6,3042.1,9.54229745]
[1767345025479,2.97222125,3043.4,3042.2,0.95422974]
[1767345025897,0.862,3043.3,3042.2,0.95422974]
[1767345026200,2.88592882,3043.2,3042.2,0.95422974]
[1767345026365,2.88592882,3043.2,3041.8,3.28750982]
[1767345026567,2.88592882,3043.2,3042.0,3.2873002]
[1767345026774,2.88592882,3043.1,3041.7,3.07932301]
[1767345027012,2.88592882,3043.1,3041.8,3.28746233]
[1767345027214,2.88592882,3043.1,3041.7,3.2876352]
[1767345027376,2.88592882,3042.9,3041.8,0.32876352]
[1767345027906,2.88592882,3042.9,3041.6,3.28773822]
[1767345028113,2.88592882,3042.9,3041.1,3.28826406]
[1767345028320,2.88592882,3042.9,3041.1,2.86942789]
[1767345028603,2.88592882,3042.9,3040.3,3.28909944]
[1767345028604,3.05632233,3042.6,3040.9,3.28849607]